bitfinex/quotes_SOLUSD_20251106
["timestamp","ask_amount","ask_price","bid_price","bid_amount"]
[1762389623979,0.67,160.7,160.68,5.57993002]
[1762389624694,0.68,160.73,160.69,5.57993002]
[1762389624891,0.68,160.72,160.7,5.57993002]
[1762389625196,6.9023723,160.72,160.68,5.57993002]
[1762389625369,6.9023723,160.72,160.67,5.57993002]
[1762389625570,0.68,160.71,160.67,5.57993002]
[1762389625882,7.26,160.7,160.65,9.78882769]
[1762389626086,12.83993002,160.7,160.64,5.57993002]
[1762389626286,6.25993002,160.69,160.63,5.57993002]
[1762389626794,0.68,160.68,160.63,5.57993002]
[1762389626990,7.26,160.67,160.64,5.57993002]
[1762389627199,13.48395272,160.67,160.64,5.57993002]
[1762389627378,7.94,160.67,160.64,11.80501402]
[1762389627580,7.26,160.67,160.65,5.57993002]
[1762389627775,0.68,160.66,160.65,5.57993002]
[1762389628086,7.94,160.67,160.65,5.57993002]
[1762389628472,7.26,160.67,160.65,5.57993002]
[1762389628679,13.48356144,160.68,160.65,5.57993002]
[1762389628993,7.26,160.68,160.66,5.57993002]
[1762389629187,7.94,160.68,160.66,5.57993002]
[1762389629493,14.1635935,160.68,160.66,5.57993002]
[1762389629696,0.68,160.67,160.63,9.78882769]
[1762389630196,0.68,160.67,160.65,5.57993002]
[1762389631298,6.90403238,160.67,160.65,5.57993002]
[1762389631501,6.90403238,160.67,160.64,5.57993002]
[1762389631906,6.90403238,160.67,160.65,5.57993002]
[1762389633101,0.68,160.66,160.6,0.79]
[1762389633288,7.26,160.65,160.63,5.57993002]
[1762389633606,7.26,160.65,160.64,5.57993002]
[1762389634692,7.26,160.65,160.64,11.80502962]
[1762389635003,7.26,160.67,160.64,11.80502962]
[1762389635206,7.98,160.67,160.66,5.57993002]
[1762389635505,7.98,160.67,160.65,5.57993002]
[1762389636506,7.98,160.67,160.64,5.57993002]
[1762389636802,0.72,160.69,160.66,5.57993002]
[1762389637010,7.26,160.68,160.66,5.57993002]
[1762389637379,5.57993002,160.73,160.67,6.23993002]
[1762389637380,6.94193022,160.73,160.67,6.23993002]
[1762389637693,7.98,160.72,160.65,9.78882769]
[1762389638094,0.72,160.71,160.67,5.57993002]
[1762389638279,0.72,160.71,160.67,2.14308124]
[1762389638480,0.72,160.71,160.68,2.14308124]
[1762389639206,6.94251105,160.71,160.68,2.14308124]
[1762389639706,0.72,160.7,160.68,2.14308124]
[1762389640501,0.72,160.73,160.69,2.14308124]
[1762389640699,7.98,160.72,160.7,2.14308124]
[1762389640897,7.98,160.72,160.69,2.14308124]
[1762389641810,14.20205634,160.72,160.69,2.14308124]
[1762389642006,0.72,160.71,160.69,2.14308124]
[1762389643108,7.26,160.74,160.7,2.80308124]
[1762389643411,7.26,160.74,160.73,2.14308124]
[1762389643593,7.26,160.77,160.73,2.14308124]
[1762389644099,7.26,160.77,160.74,2.14308124]
[1762389644294,0.72,160.76,160.74,2.14308124]
[1762389645983,0.72,160.76,160.73,6.22148224]
[1762389646190,0.72,160.76,160.73,8.36456348]
[1762389646399,0.72,160.76,160.73,2.14308124]
[1762389646715,6.94045606,160.76,160.73,2.14308124]
[1762389647490,0.72,160.76,160.73,2.14308124]
[1762389648312,13.48019525,160.77,160.73,2.14308124]
[1762389648509,13.48019525,160.77,160.73,9.02464585]
[1762389648510,14.20019525,160.77,160.73,9.02464585]
[1762389648807,0.72,160.76,160.73,8.36464585]
[1762389649316,0.72,160.76,160.7,17.04882769]
[1762389649317,6.94048821,160.76,160.7,17.04882769]
[1762389649504,6.94048821,160.76,160.72,2.14308124]
[1762389649813,6.94048821,160.76,160.71,0.66]
[1762389650014,6.94048821,160.76,160.72,2.14308124]
[1762389650208,6.22048821,160.76,160.72,2.14308124]
[1762389650403,0.72,160.75,160.71,0.66]
[1762389650600,0.72,160.75,160.72,2.14308124]
[1762389652108,0.72,160.75,160.72,8.36499798]
[1762389652313,6.22048821,160.76,160.73,2.14308124]
[1762389652514,6.94048821,160.76,160.73,2.14308124]
[1762389652715,0.72,160.76,160.73,2.14308124]
[1762389653408,0.72,160.76,160.72,6.22191674]
[1762389653608,6.94046077,160.76,160.73,2.14308124]
[1762389655525,6.22046077,160.76,160.71,6.22238815]
[1762389655725,0.72,160.75,160.72,2.14308124]
[1762389657628,6.94095808,160.75,160.72,2.14308124]
[1762389658938,6.94095808,160.75,160.72,8.36508032]
[1762389661725,0.72,160.75,160.72,8.36508032]
[1762389661932,0.72,160.75,160.72,9.06508032]
[1762389662231,7.26,160.77,160.73,2.84308124]
[1762389662531,0.72,160.76,160.72,8.36508032]
[1762389662731,0.72,160.76,160.73,2.14308124]
[1762389663334,6.94067625,160.76,160.73,2.14308124]
[1762389663523,0.72,160.75,160.73,2.14308124]
[1762389664025,0.72,160.75,160.7,17.04882769]
[1762389664216,0.72,160.75,160.72,2.14308124]
[1762389664412,7.26,160.77,160.73,2.14308124]
[1762389664605,0.72,160.76,160.73,2.14308124]
[1762389664811,21.312,160.78,160.75,2.14308124]
[1762389665011,34.79179545,160.78,160.72,9.78882769]
[1762389665213,0.72,160.77,160.75,2.14308124]
[1762389665434,0.72,160.77,160.74,2.14308124]
[1762389665836,0.72,160.77,160.75,2.14308124]
[1762389666315,27.852,160.78,160.75,2.14308124]
[1762389666519,28.572,160.78,160.76,2.14308124]
[1762389667044,21.312,160.8,160.77,2.14308124]
[1762389667244,26.81093188,160.8,160.77,2.14308124]
[1762389667551,0.72,160.79,160.77,2.14308124]
[1762389667716,0.72,160.79,160.76,2.14308124]
[1762389668448,0.72,160.79,160.77,2.14308124]
[1762389669214,6.93932617,160.79,160.74,9.78882769]
[1762389669438,0.72,160.78,160.75,2.14308124]
[1762389670442,6.93972099,160.78,160.75,3.34561983]
[1762389671631,6.93972099,160.78,160.76,3.34561983]
[1762389671834,27.53104943,160.8,160.77,3.34561983]
[1762389672435,0.72,160.79,160.77,3.34561983]
[1762389673019,0.72,160.79,160.78,3.34561983]
[1762389673245,20.592,160.8,160.78,4.04561983]
[1762389673424,20.592,160.8,160.79,3.34561983]
[1762389673624,20.592,160.8,160.76,0.7]
[1762389673854,20.592,160.8,160.79,3.34561983]
[1762389675143,27.53090547,160.8,160.73,9.78882769]
[1762389675438,20.592,160.8,160.79,3.34561983]
[1762389675840,27.53090547,160.8,160.78,3.34561983]
[1762389676140,21.312,160.8,160.79,3.34561983]
[1762389676745,27.53090547,160.8,160.79,3.34561983]
[1762389676920,20.592,160.8,160.79,3.34561983]
[1762389677541,0.2,160.83,160.8,9.78882769]
[1762389677741,0.2,160.89,160.82,33.72644752]
[1762389677940,0.2,160.89,160.84,13.13444752]
[1762389678439,0.2,160.89,160.84,13.83444752]
[1762389678640,0.2,160.89,160.84,20.05180638]
[1762389679646,0.2,160.89,160.84,35.59520354]
[1762389679853,0.2,160.89,160.88,3.34561983]
[1762389680236,0.2,160.89,160.88,7.39123966]
[1762389680747,0.2,160.89,160.88,6.69123966]
[1762389681124,0.2,160.89,160.88,7.39123966]
[1762389682036,0.2,160.89,160.88,4.04561983]
[1762389682457,0.2,160.89,160.88,12.90705268]
[1762389682756,0.2,160.89,160.88,13.57705268]
[1762389682950,0.2,160.89,160.88,23.36588037]
[1762389683150,0.2,160.93,160.88,38.90541294]
[1762389683341,0.9,160.93,160.92,3.34561983]
[1762389684567,0.2,160.93,160.92,3.34561983]
[1762389685730,0.9,160.93,160.92,3.34561983]
[1762389685936,0.2,160.93,160.92,3.34561983]
[1762389686944,6.55321985,160.95,160.92,3.34561983]
[1762389687143,6.55321985,160.95,160.94,3.34561983]
[1762389687359,27.14521985,160.95,160.94,3.34561983]
[1762389687558,20.932,160.95,160.94,3.34561983]
[1762389687933,27.14510966,160.95,160.94,3.34561983]
[1762389688544,26.80510966,160.95,160.94,3.34561983]
[1762389688745,20.592,160.95,160.94,3.34561983]
[1762389688950,7.24,160.96,160.94,3.34561983]
[1762389689256,15.52916899,160.99,160.95,3.34561983]
[1762389689257,8.14,160.98,160.95,3.34561983]
[1762389689453,14.35203967,160.98,160.94,0.67]
[1762389689756,13.65203967,160.98,160.97,3.34561983]
[1762389690054,8.14,160.98,160.97,3.34561983]
[1762389691362,14.35195179,160.98,160.97,3.34561983]
[1762389692137,14.35195179,160.98,160.93,0.67]
[1762389692435,0.7,160.97,160.96,3.34561983]
[1762389693136,0.7,160.97,160.93,0.67]
[1762389693337,0.7,160.97,160.96,3.34561983]
[1762389694355,6.9123377,160.97,160.96,3.34561983]
[1762389694963,0.7,160.97,160.96,3.34561983]
[1762389695384,13.65205668,160.98,160.96,3.34561983]
[1762389695660,0.68,160.97,160.96,3.34561983]
[1762389697956,13.65205668,160.98,160.96,3.34561983]
[1762389698266,14.33205668,160.98,160.96,3.34561983]
[1762389699269,0.68,160.97,160.95,3.34561983]
[1762389699455,14.33205668,160.98,160.96,3.34561983]
[1762389699972,7.44,160.98,160.96,3.34561983]
[1762389700350,8.12,160.98,160.96,3.34561983]
[1762389700549,8.12,160.98,160.97,3.34561983]
[1762389701064,0.2,160.98,160.97,3.34561983]
[1762389701870,0.88,160.98,160.97,3.34561983]
[1762389702246,0.88,160.98,160.96,3.34561983]
[1762389702247,7.09199524,160.98,160.96,3.34561983]
[1762389704776,0.68,160.97,160.91,0.72]
[1762389704955,7.92,160.97,160.91,0.72]
[1762389705273,7.92,160.97,160.93,3.34561983]
[1762389705472,6.89293103,160.96,160.93,3.34561983]
[1762389705677,42.57761983,160.94,160.82,0.72]
[1762389705863,3.34561983,160.86,160.8,3.34561983]
[1762389706201,20.592,160.9,160.85,3.34561983]
[1762389706202,0.61973227,160.9,160.85,3.34561983]
[1762389706371,7.24,160.89,160.86,3.34561983]
[1762389706674,0.68,160.9,160.85,3.34561983]
[1762389706858,0.68,160.89,160.86,3.34561983]
[1762389707248,7.24,160.91,160.88,3.34561983]
[1762389707446,7.24,160.91,160.9,3.34561983]
[1762389707772,14.13465415,160.91,160.89,3.34561983]
[1762389708172,7.92,160.91,160.88,3.34561983]
[1762389708362,7.92,160.91,160.89,3.34561983]
[1762389708958,6.89467003,160.91,160.88,3.34561983]
[1762389709357,6.21467003,160.91,160.86,6.21629841]
[1762389709574,0.68,160.9,160.88,3.34561983]
[1762389709771,6.21467003,160.91,160.88,3.34561983]
[1762389709952,0.68,160.9,160.85,0.72]
[1762389710155,7.24,160.89,160.86,3.34561983]
[1762389710648,7.92,160.89,160.86,3.34561983]
[1762389711053,7.92,160.89,160.87,3.34561983]
[1762389711281,0.68,160.89,160.87,3.34561983]
[1762389712766,6.88520275,160.9,160.88,3.34561983]
[1762389712966,0.67,160.9,160.88,3.34561983]
[1762389713979,6.88508101,160.9,160.87,3.34561983]
[1762389714174,0.67,160.89,160.87,3.34561983]
[1762389715579,6.21508101,160.9,160.88,3.34561983]
[1762389716086,6.88508101,160.9,160.88,3.34561983]
[1762389716384,0.67,160.9,160.88,3.34561983]
[1762389716687,13.45474693,160.91,160.89,3.34561983]
[1762389717283,14.12474693,160.91,160.89,3.34561983]
[1762389717582,0.67,160.9,160.88,3.34561983]
[1762389717970,0.67,160.9,160.87,3.34561983]
[1762389718176,0.67,160.9,160.88,3.34561983]
[1762389719185,6.88508189,160.9,160.88,3.34561983]
[1762389720675,0.67,160.89,160.88,3.34561983]
[1762389720873,4.01561983,160.89,160.79,0.69]
[1762389721078,4.01561983,160.89,160.82,3.34561983]
[1762389721079,7.24,160.88,160.82,3.34561983]
[1762389721284,9.56181924,160.87,160.81,3.34561983]
[1762389721589,22.42669794,160.87,160.82,3.34561983]
[1762389721791,26.80778384,160.89,160.86,3.34561983]
[1762389722015,34.04778384,160.89,160.87,3.34561983]
[1762389722292,0.67,160.88,160.87,3.34561983]
[1762389722786,0.67,160.88,160.86,3.34561983]
[1762389722983,6.88604604,160.88,160.86,3.34561983]
[1762389723767,0.67,160.87,160.83,0.69]
[1762389723966,7.24,160.86,160.84,3.34561983]
[1762389724483,7.91,160.86,160.84,3.34561983]
[1762389724684,7.91,160.86,160.85,3.34561983]
[1762389724881,14.12673635,160.86,160.82,0.69]
[1762389725093,14.12673635,160.86,160.85,3.34561983]
[1762389726688,14.12673635,160.86,160.84,3.34561983]
[1762389727391,7.91,160.86,160.85,3.34561983]
[1762389727595,13.45658585,160.86,160.81,6.21850183]
[1762389727902,14.12658585,160.86,160.83,3.34561983]
[1762389728072,7.91,160.86,160.84,3.34561983]
[1762389728270,7.24,160.86,160.84,3.34561983]
[1762389728974,7.24,160.86,160.85,3.34561983]
[1762389731309,14.12658585,160.86,160.84,3.34561983]
[1762389731781,7.91,160.86,160.85,3.34561983]
[1762389731982,7.24,160.86,160.85,3.34561983]
[1762389732409,7.24,160.86,160.85,2.13863514]
[1762389736001,36.13136596,160.89,160.85,2.82863514]
[1762389736002,26.8075412,160.89,160.85,2.82863514]
[1762389736228,27.4775412,160.89,160.88,2.13863514]
[1762389736518,0.67,160.95,160.89,9.78882769]
[1762389736682,0.67,160.95,160.94,2.13863514]
[1762389737403,8.11,160.98,160.94,8.35211719]
[1762389737597,0.67,160.97,160.96,2.13863514]
[1762389738104,0.2,160.98,160.96,2.13863514]
[1762389738304,8.11,160.98,160.97,2.13863514]
[1762389738711,0.2,160.98,160.97,2.13863514]
[1762389738896,7.08195179,160.98,160.97,2.13863514]
[1762389740181,0.2,160.98,160.97,2.13863514]
[1762389743482,7.10195179,160.98,160.97,2.13863514]
[1762389744587,7.10195179,160.98,160.91,0.66]
[1762389744813,7.93,160.97,160.94,2.13863514]
[1762389744997,7.93,160.97,160.93,2.13863514]
[1762389745199,0.69,160.96,160.93,2.13863514]
[1762389745998,7.24,160.95,160.93,2.13863514]
[1762389746400,7.93,160.95,160.93,2.13863514]
[1762389746815,14.14331075,160.95,160.93,2.13863514]
[1762389748092,6.21331075,160.95,160.93,2.13863514]
[1762389748419,6.21331075,160.95,160.94,2.13863514]
[1762389748806,6.21331075,160.95,160.93,2.13863514]
[1762389749193,6.90331075,160.95,160.93,2.13863514]
[1762389759419,10.03863514,160.94,160.8,6.21890547]
[1762389759605,20.592,160.91,160.85,2.13863514]
[1762389759924,7.24,160.9,160.86,2.13863514]
[1762389760105,7.9,160.9,160.86,2.13863514]
[1762389760302,7.9,160.9,160.87,2.13863514]
[1762389760500,6.21542668,160.89,160.87,2.13863514]
[1762389760708,0.66,160.92,160.88,2.13863514]
[1762389760905,6.21468843,160.91,160.89,2.13863514]
[1762389761105,6.21468843,160.91,160.88,2.80863514]
[1762389761306,14.11468843,160.91,160.89,2.13863514]
[1762389762532,15.53315075,160.95,160.9,2.80863514]
[1762389762730,7.24,160.94,160.92,2.13863514]
[1762389762919,7.24,160.94,160.9,6.88495051]
[1762389762920,7.24,160.94,160.93,2.13863514]
[1762389763119,7.24,160.94,160.92,2.13863514]
[1762389763321,7.24,160.94,160.93,2.13863514]
[1762389763633,7.24,160.94,160.91,0.67]
[1762389763833,7.9,160.94,160.92,2.13863514]
[1762389764214,0.66,160.93,160.92,2.13863514]
[1762389764913,6.87388181,160.93,160.92,2.13863514]
[1762389765109,6.21388181,160.93,160.92,2.13863514]
[1762389765611,6.21359487,160.94,160.92,2.13863514]
[1762389765816,14.11359487,160.94,160.92,2.13863514]
[1762389766310,14.11359487,160.94,160.9,6.88502876]
[1762389766311,0.66,160.93,160.91,2.13863514]
[1762389767439,6.87413953,160.93,160.91,2.13863514]
[1762389769733,6.87426795,160.92,160.91,2.13863514]
[1762389770415,6.21426795,160.92,160.91,2.13863514]
[1762389771140,6.21388181,160.93,160.91,2.13863514]
[1762389771333,6.87388181,160.93,160.91,2.13863514]
[1762389772140,7.92,160.92,160.82,15.54445646]
[1762389772342,2.13863514,160.91,160.86,2.13863514]
[1762389772548,0.68,160.9,160.84,2.13863514]
[1762389772756,7.24,160.89,160.84,2.13863514]
[1762389772918,7.24,160.89,160.85,2.13863514]
[1762389773112,6.21619941,160.87,160.85,2.13863514]
[1762389773327,6.21619941,160.87,160.84,2.13863514]
[1762389773648,6.21619941,160.87,160.85,2.13863514]
[1762389773951,28.99440632,160.89,160.86,2.13863514]
[1762389774118,29.67440632,160.89,160.85,2.80863514]
[1762389774322,0.68,160.88,160.85,2.80863514]
[1762389774931,0.68,160.88,160.85,2.13863514]
[1762389775337,6.21619941,160.87,160.85,2.13863514]
[1762389776041,6.21619941,160.87,160.85,2.80863514]
[1762389776619,6.21619941,160.87,160.84,2.13863514]
[1762389776819,6.21619941,160.87,160.84,2.80863514]
[1762389777634,6.21619941,160.87,160.85,2.13863514]
[1762389779547,6.21619941,160.87,160.84,0.67]
[1762389779752,6.89619941,160.87,160.84,2.80863514]
[1762389780249,6.21619941,160.87,160.85,2.80863514]
[1762389781356,6.21581302,160.88,160.85,2.80863514]
[1762389781560,6.89581302,160.88,160.85,2.80863514]
[1762389782450,22.43534559,160.88,160.85,2.80863514]
[1762389783155,0.68,160.87,160.83,2.13863514]
[1762389783343,7.92,160.87,160.83,2.80863514]
[1762389783531,6.21658585,160.86,160.84,0.67]
[1762389784568,6.21658585,160.86,160.84,2.80863514]
[1762389785949,6.21658585,160.86,160.84,2.13863514]
[1762389786848,6.21658585,160.86,160.84,2.80863514]
[1762389788155,6.21658585,160.86,160.84,2.13863514]
[1762389788361,6.21658585,160.86,160.79,36.1395901]
[1762389788362,10.05863514,160.85,160.79,9.78882769]
[1762389788537,0.68,160.84,160.8,2.13863514]
[1762389788850,7.24,160.83,160.8,2.80863514]
[1762389789059,20.592,160.87,160.82,2.13863514]
[1762389789060,6.21629048,160.87,160.82,2.13863514]
[1762389789354,13.45629048,160.87,160.85,2.13863514]
[1762389789830,14.13629048,160.87,160.85,2.13863514]
[1762389790227,7.24,160.87,160.86,2.13863514]
[1762389791031,6.89592912,160.88,160.86,2.13863514]
[1762389791331,2.13863514,160.92,160.87,2.80863514]
[1762389791332,16.21597403,160.92,160.87,2.80863514]
[1762389791531,6.21465415,160.91,160.9,2.13863514]
[1762389792056,6.89465415,160.91,160.9,2.13863514]
[1762389792568,6.21465415,160.91,160.9,3.33964688]
[1762389793264,6.2143704,160.92,160.9,3.33964688]
[1762389793474,6.2143704,160.92,160.91,3.33964688]
[1762389794045,4.15937915,160.98,160.91,4.00964688]
[1762389794046,6.89285161,160.96,160.91,4.00964688]
[1762389794276,7.24,160.95,160.92,0.67]
[1762389794565,7.92,160.96,160.92,6.8841272]
[1762389794755,0.68,160.95,160.92,0.67]
[1762389795259,13.45278728,160.96,160.92,0.67]
[1762389795581,14.13278728,160.96,160.95,3.33964688]
[1762389795751,7.92,160.96,160.95,3.33964688]
[1762389796079,13.45272365,160.96,160.95,3.33964688]
[1762389796847,7.24,160.96,160.95,3.33964688]
[1762389797053,13.45273067,160.96,160.93,0.67]
[1762389797353,13.45273067,160.96,160.95,3.33964688]
[1762389798374,6.21273067,160.96,160.95,3.33964688]
[1762389798557,6.21273067,160.96,160.94,3.33964688]
[1762389799167,0.68,160.95,160.94,3.33964688]
[1762389799366,0.68,160.95,160.93,3.33964688]
[1762389799560,0.68,160.95,160.91,3.33964688]
[1762389799561,7.24,160.94,160.91,3.33964688]
[1762389800067,0.68,160.93,160.9,3.33964688]
[1762389800267,0.68,160.93,160.89,0.67]
[1762389800268,0.68,160.93,160.89,3.33964688]
[1762389800468,0.68,160.93,160.88,3.33964688]
[1762389800663,0.68,160.93,160.89,3.33964688]
[1762389800967,0.68,160.93,160.9,3.33964688]
[1762389801171,6.89426523,160.93,160.9,3.33964688]
[1762389801550,0.68,160.92,160.9,3.33964688]
[1762389801750,7.24,160.91,160.9,3.33964688]
[1762389802168,0.68,160.92,160.89,3.33964688]
[1762389802472,0.66,160.92,160.89,3.33964688]
[1762389803063,6.21465415,160.91,160.89,3.33964688]
[1762389803465,6.87465415,160.91,160.89,3.33964688]
[1762389804172,21.75128953,160.91,160.88,3.33964688]
[1762389804376,7.9,160.9,160.87,3.33964688]
[1762389804755,0.66,160.89,160.86,3.33964688]
[1762389805387,6.87570877,160.89,160.86,3.33964688]
[1762389806188,6.21570877,160.89,160.86,3.33964688]
[1762389806367,6.21570877,160.89,160.84,6.90708417]
[1762389806368,0.66,160.88,160.84,3.33964688]
[1762389807556,0.66,160.88,160.83,10.47882769]
[1762389807557,7.24,160.87,160.82,0.69]
[1762389807760,7.24,160.87,160.82,4.02964688]
[1762389807958,0.66,160.86,160.82,4.02964688]
[1762389808179,0.66,160.86,160.83,3.33964688]
[1762389808361,6.87675023,160.86,160.83,3.33964688]
[1762389809761,6.87675023,160.86,160.83,4.02964688]
[1762389810170,6.87675023,160.86,160.83,3.33964688]
[1762389810778,0.66,160.85,160.79,16.00793563]
[1762389810961,7.24,160.84,160.81,3.33964688]
[1762389811171,7.24,160.84,160.8,3.33964688]
[1762389811368,0.66,160.83,160.8,3.33964688]
[1762389812462,6.21813207,160.82,160.8,3.33964688]
[1762389813384,6.21813207,160.82,160.8,4.02964688]
[1762389814162,6.21813207,160.82,160.78,0.1]
[1762389814364,6.21813207,160.82,160.8,3.33964688]
[1762389814776,6.21813207,160.82,160.81,3.33964688]
[1762389815465,6.2178771,160.83,160.81,3.33964688]
[1762389815672,6.2178771,160.83,160.8,0.72]
[1762389815673,6.21661766,160.86,160.82,4.05964688]
[1762389815873,13.45661766,160.86,160.84,3.33964688]
[1762389816193,0.67,160.85,160.84,3.33964688]
[1762389816578,6.88697233,160.85,160.83,3.33964688]
[1762389816779,6.21697233,160.85,160.83,3.33964688]
[1762389817772,6.21658585,160.86,160.83,3.33964688]
[1762389817971,14.12658585,160.86,160.83,3.33964688]
[1762389818376,28.99805047,160.86,160.79,9.78882769]
[1762389818575,20.592,160.83,160.78,0.1]
[1762389818819,7.24,160.82,160.78,0.1]
[1762389819099,7.91,160.82,160.78,0.82]
[1762389819272,3.33964688,160.8,160.78,0.1]
[1762389819593,7.24,160.79,160.78,0.1]
[1762389819780,16.79893912,160.79,160.78,0.1]
[1762389819987,17.46893912,160.79,160.78,0.1]
[1762389822378,18.08867139,160.79,160.78,0.1]
[1762389823076,17.46893912,160.79,160.78,0.1]
[1762389824479,14.12929224,160.79,160.78,0.1]
[1762389824675,17.46893912,160.79,160.78,0.1]
[1762389827793,14.12929224,160.79,160.78,0.1]
[1762389828004,0.67,160.82,160.78,0.82]
[1762389828204,7.24,160.81,160.78,4.15964688]
[1762389828409,6.21774544,160.83,160.78,4.15964688]
[1762389828581,34.04974544,160.83,160.78,9.65928469]
[1762389828906,7.24,160.84,160.81,3.33964688]
[1762389829284,7.24,160.84,160.82,0.72]
[1762389829490,7.24,160.84,160.82,4.05964688]
[1762389830209,7.24,160.84,160.82,3.33964688]
[1762389830409,7.24,160.84,160.81,3.33964688]
[1762389830591,14.12738401,160.84,160.78,0.1]
[1762389830789,14.12738401,160.84,160.8,4.05964688]
[1762389831200,13.45738401,160.84,160.81,4.05964688]
[1762389831907,13.45708785,160.85,160.82,0.72]
[1762389832091,6.21708785,160.85,160.82,4.05964688]
[1762389832296,6.21708785,160.85,160.82,0.72]
[1762389832804,34.04870375,160.86,160.82,4.05964688]
[1762389832980,34.04870375,160.86,160.83,3.33964688]
[1762389833177,34.04870375,160.86,160.82,4.05964688]
[1762389833413,34.04870375,160.86,160.83,3.33964688]
[1762389833622,27.832,160.86,160.83,0.72]
[1762389833916,34.04868392,160.86,160.83,4.05964688]
[1762389834807,34.04863984,160.86,160.83,4.05964688]
[1762389834994,7.24,160.86,160.84,4.05964688]
[1762389836085,13.45665913,160.86,160.83,4.05964688]
[1762389836314,14.16665913,160.86,160.83,0.72]
[1762389836485,0.71,160.85,160.8,4.05964688]
[1762389836685,7.24,160.84,160.79,6.93890612]
[1762389836890,6.21774544,160.83,160.79,4.05964688]
[1762389837099,6.92774544,160.83,160.8,0.72]
[1762389838009,13.45746803,160.84,160.8,0.72]
[1762389838200,14.16746803,160.84,160.8,0.72]
[1762389839503,6.21813207,160.82,160.79,3.33964688]
[1762389839703,6.21813207,160.82,160.79,4.05964688]
[1762389840313,7.24,160.81,160.79,4.05964688]
[1762389844203,13.45860089,160.81,160.78,0.1]
[1762389844418,4.04964688,160.8,160.78,0.1]
[1762389844810,4.04964688,160.79,160.78,0.1]
[1762389846298,10.26893912,160.79,160.78,0.1]
[1762389847309,6.92929224,160.79,160.78,0.1]
[1762389848422,3.33964688,160.8,160.78,0.82]
[1762389848423,6.21895661,160.8,160.78,0.82]
[1762389848728,7.24,160.79,160.78,0.82]
[1762389849028,7.24,160.79,160.78,0.1]
[1762389850416,13.45929224,160.79,160.78,0.1]
[1762389851719,7.24,160.79,160.78,0.1]
[1762389852935,0.71,160.86,160.78,4.15964688]
[1762389853235,0.71,160.86,160.79,4.05964688]
[1762389853236,20.592,160.84,160.79,4.05964688]
[1762389853421,23.93164688,160.84,160.78,0.1]
[1762389853625,4.04964688,160.83,160.78,0.1]
[1762389853932,7.24,160.82,160.78,0.1]
[1762389854141,7.95,160.82,160.78,0.82]
[1762389854639,6.92851874,160.81,160.78,0.82]
[1762389855027,6.21851874,160.81,160.78,0.82]
[1762389856027,6.21851874,160.81,160.78,0.1]
[1762389856229,6.92851874,160.81,160.78,0.1]
[1762389856838,6.92851874,160.81,160.78,0.82]
[1762389857032,6.92851874,160.81,160.78,2.96055185]
[1762389857214,6.21851874,160.81,160.78,2.96055185]
[1762389857410,6.21851874,160.81,160.79,0.72]
[1762389857633,6.21851874,160.81,160.78,2.96055185]
[1762389857939,6.21851874,160.81,160.79,0.72]
[1762389858841,6.21851874,160.81,160.78,2.24055185]
[1762389859036,6.21851874,160.81,160.78,2.96055185]
[1762389859224,6.21851874,160.81,160.79,0.72]
[1762389860039,0.71,160.86,160.8,2.14055185]
[1762389860222,21.758109,160.86,160.81,2.14055185]
[1762389860534,13.45706692,160.85,160.83,2.14055185]
[1762389860740,7.24,160.85,160.83,2.14055185]
[1762389860929,7.24,160.85,160.83,2.86055185]
[1762389861128,7.24,160.85,160.83,0.72]
[1762389861329,13.45704488,160.85,160.83,0.72]
[1762389862327,7.24,160.85,160.83,0.72]
[1762389862751,13.45705542,160.85,160.82,2.14055185]
[1762389862927,13.45705542,160.85,160.82,2.84055185]
[1762389863826,7.24,160.85,160.83,0.7]
[1762389864020,7.24,160.85,160.83,2.84055185]
[1762389864843,6.21673865,160.86,160.83,2.84055185]
[1762389865047,7.24,160.85,160.83,2.84055185]
[1762389866048,7.24,160.85,160.83,8.35822094]
[1762389866259,173.2622074,160.96,160.84,2.84055185]
[1762389866260,6.21426795,160.92,160.84,2.84055185]
[1762389866420,7.24,160.91,160.88,2.14055185]